[Event "*** SCC Grand Prix: Titled Tuesday Blitz"]
[Site "Chess.com"]
[Date "2020.10.06"]
[Round "8"]
[White "DenLaz"]
[Black "DanielDardha2005"]
[Result "1-0"]
[WhiteElo "2813"]
[BlackElo "2681"]
[TimeControl "180+1"]
[EndTime "11:36:29 PDT"]
[Termination "DenLaz won by checkmate"]

1. d4 {[%clk 0:02:54.5]} 1... Nf6 {[%clk 0:02:59.8]} 2. c4 {[%clk 0:02:54.8]}
2... e6 {[%clk 0:03:00.2]} 3. Nf3 {[%clk 0:02:54.7]} 3... d5 {[%clk 0:02:59.8]}
4. Nc3 {[%clk 0:02:54.3]} 4... Bb4 {[%clk 0:02:54.6]} 5. Bg5 {[%clk 0:02:49.6]}
5... h6 {[%clk 0:02:51.4]} 6. Bxf6 {[%clk 0:02:49.6]} 6... Qxf6 {[%clk
0:02:52.3]} 7. Qa4+ {[%clk 0:02:50.1]} 7... Nc6 {[%clk 0:02:52.1]} 8. e3 {[%clk
0:02:48.6]} 8... O-O {[%clk 0:02:51.3]} 9. Be2 {[%clk 0:02:47.2]} 9... dxc4
{[%clk 0:02:51.5]} 10. Bxc4 {[%clk 0:02:46.6]} 10... Bd7 {[%clk 0:02:49.1]} 11.
O-O {[%clk 0:02:38.4]} 11... Bd6 {[%clk 0:02:37]} 12. Qc2 {[%clk 0:02:35.5]}
12... e5 {[%clk 0:02:34.1]} 13. Nd5 {[%clk 0:02:16.6]} 13... Qd8 {[%clk
0:02:24.3]} 14. Rad1 {[%clk 0:02:09.8]} 14... exd4 {[%clk 0:02:22.3]} 15. Nxd4
{[%clk 0:02:03]} 15... Nxd4 {[%clk 0:01:51.7]} 16. Rxd4 {[%clk 0:02:01.2]} 16...
c6 {[%clk 0:01:51.7]} 17. Nc3 {[%clk 0:01:38.8]} 17... Be5 {[%clk 0:01:51]} 18.
Rd2 {[%clk 0:01:34.3]} 18... Qe7 {[%clk 0:01:49.8]} 19. Rfd1 {[%clk 0:01:33.6]}
19... Rad8 {[%clk 0:01:49.7]} 20. Qe4 {[%clk 0:01:27]} 20... Rfe8 {[%clk
0:01:30.7]} 21. Qf3 {[%clk 0:01:05.9]} 21... Bf4 {[%clk 0:01:05.4]} 22. Qxf4
{[%clk 0:01:00.3]} 22... Be6 {[%clk 0:01:00.3]} 23. Bxe6 {[%clk 0:00:58.5]}
23... fxe6 {[%clk 0:00:58.8]} 24. h3 {[%clk 0:00:56.5]} 24... Rxd2 {[%clk
0:00:57.4]} 25. Rxd2 {[%clk 0:00:57.4]} 25... Rd8 {[%clk 0:00:56.3]} 26. e4
{[%clk 0:00:54.5]} 26... Rxd2 {[%clk 0:00:51.4]} 27. Qxd2 {[%clk 0:00:55.4]}
27... Kh7 {[%clk 0:00:51.9]} 28. e5 {[%clk 0:00:54.4]} 28... Qc5 {[%clk
0:00:52.1]} 29. Qd3+ {[%clk 0:00:52.2]} 29... Kg8 {[%clk 0:00:51.4]} 30. Qd6
{[%clk 0:00:52.2]} 30... Qc4 {[%clk 0:00:51.2]} 31. g3 {[%clk 0:00:47.2]} 31...
Kh7 {[%clk 0:00:50.5]} 32. Kg2 {[%clk 0:00:47.1]} 32... b5 {[%clk 0:00:50.6]}
33. a3 {[%clk 0:00:25.6]} 33... a5 {[%clk 0:00:50.5]} 34. Qd2 {[%clk 0:00:23.1]}
34... b4 {[%clk 0:00:49.7]} 35. axb4 {[%clk 0:00:24]} 35... axb4 {[%clk
0:00:50.4]} 36. Nd1 {[%clk 0:00:24.3]} 36... c5 {[%clk 0:00:48]} 37. f3 {[%clk
0:00:20.9]} 37... Kg8 {[%clk 0:00:34.7]} 38. Ne3 {[%clk 0:00:19.8]} 38... Qb3
{[%clk 0:00:34.3]} 39. Qc1 {[%clk 0:00:19]} 39... Qd3 {[%clk 0:00:31.9]} 40. g4
{[%clk 0:00:18.6]} 40... Qd4 {[%clk 0:00:29]} 41. Nc4 {[%clk 0:00:18.5]} 41...
g5 {[%clk 0:00:26.8]} 42. b3 {[%clk 0:00:17.1]} 42... Qd3 {[%clk 0:00:26]} 43.
Qe3 {[%clk 0:00:16.8]} 43... Qc2+ {[%clk 0:00:24.2]} 44. Kg3 {[%clk 0:00:17.1]}
44... Qd1 {[%clk 0:00:21.6]} 45. Qxc5 {[%clk 0:00:17.2]} 45... Qxb3 {[%clk
0:00:20.4]} 46. Qc8+ {[%clk 0:00:17.2]} 46... Kg7 {[%clk 0:00:20.6]} 47. Qd7+
{[%clk 0:00:16.3]} 47... Kh8 {[%clk 0:00:17.2]} 48. Qxe6 {[%clk 0:00:16.5]}
48... Qc3 {[%clk 0:00:17.2]} 49. Qxh6+ {[%clk 0:00:16.6]} 49... Kg8 {[%clk
0:00:17.1]} 50. Qxg5+ {[%clk 0:00:16.9]} 50... Kh7 {[%clk 0:00:17]} 51. Qf5+
{[%clk 0:00:16.5]} 51... Kg7 {[%clk 0:00:16.4]} 52. Qf6+ {[%clk 0:00:16.3]}
52... Kh7 {[%clk 0:00:16.1]} 53. Nd6 {[%clk 0:00:11.4]} 53... Qe1+ {[%clk
0:00:14.9]} 54. Kf4 {[%clk 0:00:11.8]} 54... Qd2+ {[%clk 0:00:12.2]} 55. Kf5
{[%clk 0:00:11.6]} 55... Qd3+ {[%clk 0:00:10.3]} 56. Kg5 {[%clk 0:00:12.1]}
56... Qe3+ {[%clk 0:00:08.1]} 57. f4 {[%clk 0:00:12.3]} 57... Qxh3 {[%clk
0:00:07.8]} 58. Qg6+ {[%clk 0:00:12.4]} 58... Kh8 {[%clk 0:00:07.8]} 59. Nf7#
{[%clk 0:00:13.3]} 1-0

[Event "*** SCC Grand Prix: Titled Tuesday Blitz"]
[Site "Chess.com"]
[Date "2020.10.06"]
[Round "8"]
[White "bocah_sakit"]
[Black "FairChess_on_YouTube"]
[Result "0-1"]
[WhiteElo "2820"]
[BlackElo "2975"]
[TimeControl "180+1"]
[EndTime "11:36:34 PDT"]
[Termination "FairChess_on_YouTube won by resignation"]

1. e4 {[%clk 0:03:00.9]} 1... c5 {[%clk 0:02:55.2]} 2. Nf3 {[%clk 0:03:01]} 2...
e6 {[%clk 0:02:55.1]} 3. d4 {[%clk 0:03:01.2]} 3... cxd4 {[%clk 0:02:56]} 4.
Nxd4 {[%clk 0:03:02.1]} 4... Nc6 {[%clk 0:02:56.2]} 5. Nc3 {[%clk 0:03:01.7]}
5... Qc7 {[%clk 0:02:56.3]} 6. g3 {[%clk 0:03:02.1]} 6... a6 {[%clk 0:02:50.6]}
7. Bg2 {[%clk 0:03:01.2]} 7... Nf6 {[%clk 0:02:50.4]} 8. O-O {[%clk 0:03:01.3]}
8... Nxd4 {[%clk 0:02:48.5]} 9. Qxd4 {[%clk 0:03:01]} 9... Bc5 {[%clk
0:02:46.9]} 10. Bf4 {[%clk 0:03:01.3]} 10... d6 {[%clk 0:02:47]} 11. Qd2 {[%clk
0:02:55.8]} 11... h6 {[%clk 0:02:36.1]} 12. Rad1 {[%clk 0:02:53.2]} 12... e5
{[%clk 0:02:36.2]} 13. Be3 {[%clk 0:02:53.6]} 13... Bxe3 {[%clk 0:02:36.3]} 14.
fxe3 {[%clk 0:02:52.8]} 14... Be6 {[%clk 0:02:35.5]} 15. Qxd6 {[%clk 0:02:50.9]}
15... Rc8 {[%clk 0:02:32.8]} 16. Qxc7 {[%clk 0:02:41]} 16... Rxc7 {[%clk
0:02:32.8]} 17. Rd2 {[%clk 0:02:39.9]} 17... Ke7 {[%clk 0:02:27.9]} 18. a4
{[%clk 0:02:24.4]} 18... Rhc8 {[%clk 0:02:07.5]} 19. h3 {[%clk 0:02:12.6]} 19...
Rc4 {[%clk 0:01:59.6]} 20. Rd3 {[%clk 0:01:39.2]} 20... b5 {[%clk 0:01:39.8]}
21. axb5 {[%clk 0:01:35.2]} 21... axb5 {[%clk 0:01:40.7]} 22. Nxb5 {[%clk
0:01:12.2]} 22... Rxc2 {[%clk 0:01:35.8]} 23. Nd6 {[%clk 0:01:08.8]} 23... Rb8
{[%clk 0:01:32.5]} 24. b3 {[%clk 0:00:55.3]} 24... Nd7 {[%clk 0:01:19.2]} 25.
Nf5+ {[%clk 0:00:34.8]} 25... Kf8 {[%clk 0:01:15.9]} 26. Rfd1 {[%clk 0:00:33.8]}
26... Rc7 {[%clk 0:00:53.2]} 27. Bf3 {[%clk 0:00:24]} 27... h5 {[%clk
0:00:35.6]} 28. Bxh5 {[%clk 0:00:14.5]} 28... g6 {[%clk 0:00:34.4]} 29. Bg4
{[%clk 0:00:14.9]} 29... gxf5 {[%clk 0:00:28.9]} 30. exf5 {[%clk 0:00:15.8]}
30... Nc5 {[%clk 0:00:29.2]} 31. fxe6 {[%clk 0:00:07.9]} 31... Nxd3 {[%clk
0:00:29.2]} 32. Rxd3 {[%clk 0:00:08.8]} 32... Rc2 {[%clk 0:00:24.5]} 33. exf7
{[%clk 0:00:05.9]} 33... Ra8 {[%clk 0:00:22]} 34. Rd1 {[%clk 0:00:04]} 34...
Kxf7 {[%clk 0:00:21.2]} 35. Bf3 {[%clk 0:00:02.5]} 35... Raa2 {[%clk 0:00:17.4]}
36. h4 {[%clk 0:00:02.7]} 36... Kf6 {[%clk 0:00:16.8]} 37. Rf1 {[%clk
0:00:02.2]} 37... Kg7 {[%clk 0:00:16]} 38. g4 {[%clk 0:00:02.3]} 38... Rc3
{[%clk 0:00:16]} 39. h5 {[%clk 0:00:02.1]} 39... Kh6 {[%clk 0:00:14.2]} 40. Be4
{[%clk 0:00:01.7]} 40... Rxe3 {[%clk 0:00:13.5]} 41. Bf3 {[%clk 0:00:02.4]}
41... Kg5 {[%clk 0:00:12.9]} 42. Bg2 {[%clk 0:00:02.2]} 42... Rg3 {[%clk
0:00:12.1]} 43. Rf2 {[%clk 0:00:02.9]} 43... Rxf2 {[%clk 0:00:11.9]} 44. Kxf2
{[%clk 0:00:03.8]} 44... Rxg4 {[%clk 0:00:12.5]} 45. Bf3 {[%clk 0:00:03.9]}
45... Rb4 {[%clk 0:00:12.4]} 46. Bd1 {[%clk 0:00:04.2]} 46... Kf4 {[%clk
0:00:09.8]} 47. Ke2 {[%clk 0:00:04.3]} 47... e4 {[%clk 0:00:09.7]} 48. Kd2
{[%clk 0:00:04.7]} 48... Rd4+ {[%clk 0:00:09.5]} 49. Ke2 {[%clk 0:00:02.3]}
49... Rd3 {[%clk 0:00:08.6]} 50. Bc2 {[%clk 0:00:02.5]} 50... Rh3 {[%clk
0:00:08.5]} 51. Kd2 {[%clk 0:00:03]} 51... Rxh5 {[%clk 0:00:08.2]} 52. Kc3
{[%clk 0:00:03.3]} 52... Rc5+ {[%clk 0:00:07.3]} 53. Kb2 {[%clk 0:00:02.9]}
53... e3 {[%clk 0:00:07.3]} 54. Bd3 {[%clk 0:00:03]} 54... Rd5 {[%clk
0:00:07.2]} 55. Kc3 {[%clk 0:00:03.6]} 55... Kf3 {[%clk 0:00:06.9]} 56. Bc4
{[%clk 0:00:03.7]} 56... Rc5 {[%clk 0:00:07]} 57. b4 {[%clk 0:00:02.5]} 57...
Rxc4+ {[%clk 0:00:06.8]} 58. Kxc4 {[%clk 0:00:03.4]} 58... e2 {[%clk 0:00:07.3]}
0-1

[Event "*** SCC Grand Prix: Titled Tuesday Blitz"]
[Site "Chess.com"]
[Date "2020.10.06"]
[Round "8"]
[White "DariaVoit"]
[Black "vanea_03"]
[Result "0-1"]
[WhiteElo "2507"]
[BlackElo "2693"]
[TimeControl "180+1"]
[EndTime "11:36:34 PDT"]
[Termination "vanea_03 won by checkmate"]

1. f4 {[%clk 0:03:00.9]} 1... Nh6 {[%clk 0:02:56.5]} 2. g3 {[%clk 0:03:00.1]}
2... d5 {[%clk 0:02:54.5]} 3. Bg2 {[%clk 0:03:00.1]} 3... c6 {[%clk 0:02:55.2]}
4. b3 {[%clk 0:02:54.6]} 4... f6 {[%clk 0:02:47.2]} 5. Bb2 {[%clk 0:02:54.4]}
5... g6 {[%clk 0:02:43.7]} 6. c4 {[%clk 0:02:52.2]} 6... d4 {[%clk 0:02:36.9]}
7. e3 {[%clk 0:02:46.5]} 7... dxe3 {[%clk 0:02:35.2]} 8. dxe3 {[%clk 0:02:46.2]}
8... Qxd1+ {[%clk 0:02:35.7]} 9. Kxd1 {[%clk 0:02:47.1]} 9... Bg7 {[%clk
0:02:29.8]} 10. Nf3 {[%clk 0:02:38.4]} 10... O-O {[%clk 0:02:24.5]} 11. Ke2
{[%clk 0:02:38]} 11... Nd7 {[%clk 0:02:02]} 12. Nbd2 {[%clk 0:02:11]} 12... e5
{[%clk 0:02:01.9]} 13. Rad1 {[%clk 0:02:07.6]} 13... Nf7 {[%clk 0:01:44.2]} 14.
Kf2 {[%clk 0:02:00.4]} 14... Re8 {[%clk 0:01:41]} 15. Rhe1 {[%clk 0:01:49.6]}
15... Nc5 {[%clk 0:01:39.1]} 16. Bf1 {[%clk 0:01:43.2]} 16... Bf5 {[%clk
0:01:33]} 17. Ba3 {[%clk 0:01:32]} 17... Bf8 {[%clk 0:01:20.4]} 18. Kg2 {[%clk
0:00:57.2]} 18... Rad8 {[%clk 0:01:18.3]} 19. h3 {[%clk 0:00:39.9]} 19... Nxb3
{[%clk 0:00:58.9]} 20. Bxf8 {[%clk 0:00:22.2]} 20... Nxd2 {[%clk 0:00:58.7]} 21.
Bc5 {[%clk 0:00:17]} 21... Bxh3+ {[%clk 0:00:50.3]} 22. Kxh3 {[%clk 0:00:15.3]}
22... Nxf3 {[%clk 0:00:49.9]} 23. Rxd8 {[%clk 0:00:12.4]} 23... Rxd8 {[%clk
0:00:48.9]} 24. Rb1 {[%clk 0:00:11.5]} 24... Rd7 {[%clk 0:00:31.2]} 25. Bxa7
{[%clk 0:00:08.4]} 25... exf4 {[%clk 0:00:28.4]} 26. exf4 {[%clk 0:00:06.4]}
26... Re7 {[%clk 0:00:20.2]} 27. Bg2 {[%clk 0:00:05.4]} 27... Nd2 {[%clk
0:00:19.8]} 28. Rd1 {[%clk 0:00:04.6]} 28... Nxc4 {[%clk 0:00:19.4]} 29. Bc5
{[%clk 0:00:04.8]} 29... Rc7 {[%clk 0:00:16.5]} 30. Re1 {[%clk 0:00:05]} 30...
Ncd6 {[%clk 0:00:09.7]} 31. Bxd6 {[%clk 0:00:04.8]} 31... Nxd6 {[%clk
0:00:09.5]} 32. Re6 {[%clk 0:00:05.5]} 32... Nf5 {[%clk 0:00:09.6]} 33. Rxf6
{[%clk 0:00:05.6]} 33... Re7 {[%clk 0:00:09.9]} 34. g4 {[%clk 0:00:05.5]} 34...
Re3+ {[%clk 0:00:09.7]} 35. Kh2 {[%clk 0:00:05.4]} 35... Nd4 {[%clk 0:00:10.1]}
36. g5 {[%clk 0:00:04.9]} 36... Re2 {[%clk 0:00:10]} 37. Kg1 {[%clk 0:00:04.2]}
37... Rxa2 {[%clk 0:00:10.3]} 38. Bh3 {[%clk 0:00:04.3]} 38... Rb2 {[%clk
0:00:09.4]} 39. Kf1 {[%clk 0:00:04.5]} 39... b5 {[%clk 0:00:08.9]} 40. Bc8
{[%clk 0:00:05]} 40... b4 {[%clk 0:00:08.4]} 41. Rd6 {[%clk 0:00:05.5]} 41... c5
{[%clk 0:00:07.6]} 42. Rd8+ {[%clk 0:00:05.1]} 42... Kf7 {[%clk 0:00:06.8]} 43.
Rd7+ {[%clk 0:00:05.7]} 43... Ke8 {[%clk 0:00:07.3]} 44. Rxh7 {[%clk 0:00:05.9]}
44... b3 {[%clk 0:00:07.7]} 45. f5 {[%clk 0:00:04.2]} 45... Rb1+ {[%clk
0:00:05.3]} 46. Kf2 {[%clk 0:00:04.6]} 46... b2 {[%clk 0:00:05.8]} 47. fxg6
{[%clk 0:00:04.7]} 47... Rf1+ {[%clk 0:00:05.8]} 48. Kxf1 {[%clk 0:00:05.1]}
48... b1=Q+ {[%clk 0:00:06.4]} 49. Kf2 {[%clk 0:00:05.7]} 49... Qxg6 {[%clk
0:00:07]} 50. Rh8+ {[%clk 0:00:06.3]} 50... Ke7 {[%clk 0:00:07.1]} 51. Bg4
{[%clk 0:00:06.3]} 51... Qxg5 {[%clk 0:00:07]} 52. Rh7+ {[%clk 0:00:06.7]} 52...
Kf6 {[%clk 0:00:07.1]} 53. Bh3 {[%clk 0:00:07.3]} 53... Qf4+ {[%clk 0:00:06.8]}
54. Kg2 {[%clk 0:00:07.6]} 54... Qf3+ {[%clk 0:00:07]} 55. Kh2 {[%clk
0:00:07.8]} 55... Qf2+ {[%clk 0:00:07.5]} 56. Bg2 {[%clk 0:00:08.3]} 56... Nf3+
{[%clk 0:00:07.8]} 57. Kh3 {[%clk 0:00:08.4]} 57... Ng5+ {[%clk 0:00:08.3]} 58.
Kg4 {[%clk 0:00:08.2]} 58... Nxh7 {[%clk 0:00:09.2]} 59. Be4 {[%clk 0:00:08.6]}
59... Qd4 {[%clk 0:00:09.2]} 60. Kh5 {[%clk 0:00:08.3]} 60... Qxe4 {[%clk
0:00:08.3]} 61. Kh6 {[%clk 0:00:08.9]} 61... Qg6# {[%clk 0:00:08.6]} 0-1

[Event "*** SCC Grand Prix: Titled Tuesday Blitz"]
[Site "Chess.com"]
[Date "2020.10.06"]
[Round "8"]
[White "SilviusTiberius"]
[Black "gui_borba"]
[Result "1/2-1/2"]
[WhiteElo "2640"]
[BlackElo "2498"]
[TimeControl "180+1"]
[EndTime "11:36:35 PDT"]
[Termination "Game drawn by stalemate"]

1. e4 {[%clk 0:03:00.9]} 1... c6 {[%clk 0:02:56]} 2. d4 {[%clk 0:03:00.7]} 2...
d5 {[%clk 0:02:56.9]} 3. exd5 {[%clk 0:03:01.6]} 3... cxd5 {[%clk 0:02:57.8]} 4.
Bd3 {[%clk 0:03:02]} 4... Nc6 {[%clk 0:02:56.5]} 5. c3 {[%clk 0:03:02.5]} 5...
Nf6 {[%clk 0:02:57.3]} 6. Bf4 {[%clk 0:03:02.7]} 6... g6 {[%clk 0:02:58.1]} 7.
Nf3 {[%clk 0:03:01.5]} 7... Bf5 {[%clk 0:02:54.8]} 8. Ne5 {[%clk 0:03:01]} 8...
Bxd3 {[%clk 0:02:45.8]} 9. Nxd3 {[%clk 0:03:01]} 9... Bg7 {[%clk 0:02:44.7]} 10.
Nd2 {[%clk 0:03:01.2]} 10... O-O {[%clk 0:02:44.8]} 11. O-O {[%clk 0:02:48.6]}
11... Nd7 {[%clk 0:02:40.3]} 12. Nf3 {[%clk 0:02:44.1]} 12... Qb6 {[%clk
0:02:35]} 13. Qb3 {[%clk 0:02:42.1]} 13... Qxb3 {[%clk 0:02:13.4]} 14. axb3
{[%clk 0:02:43]} 14... a6 {[%clk 0:02:13.8]} 15. b4 {[%clk 0:02:42.2]} 15... e6
{[%clk 0:02:08.2]} 16. Ra3 {[%clk 0:02:37.6]} 16... Rac8 {[%clk 0:02:06.5]} 17.
Nc5 {[%clk 0:02:33.4]} 17... Nxc5 {[%clk 0:02:03.5]} 18. bxc5 {[%clk 0:02:33.5]}
18... f6 {[%clk 0:02:03.4]} 19. Re1 {[%clk 0:02:29.8]} 19... e5 {[%clk
0:01:45.3]} 20. Be3 {[%clk 0:02:20.3]} 20... e4 {[%clk 0:01:43.5]} 21. Nd2
{[%clk 0:02:19.4]} 21... g5 {[%clk 0:01:36.9]} 22. b4 {[%clk 0:02:15.3]} 22...
h6 {[%clk 0:01:32.3]} 23. f3 {[%clk 0:02:07.9]} 23... f5 {[%clk 0:01:31.2]} 24.
fxe4 {[%clk 0:02:07.7]} 24... dxe4 {[%clk 0:01:32.1]} 25. Bf2 {[%clk 0:02:04.2]}
25... Rce8 {[%clk 0:01:26.8]} 26. g4 {[%clk 0:01:57]} 26... fxg4 {[%clk
0:01:10]} 27. Rxe4 {[%clk 0:01:56.1]} 27... Rxe4 {[%clk 0:01:04.7]} 28. Nxe4
{[%clk 0:01:57]} 28... Rf3 {[%clk 0:01:05]} 29. Ra1 {[%clk 0:01:50.9]} 29... Ne7
{[%clk 0:00:50.1]} 30. Rc1 {[%clk 0:01:27.5]} 30... Nd5 {[%clk 0:00:48.7]} 31.
Rc2 {[%clk 0:00:49.3]} 31... Nf4 {[%clk 0:00:39.7]} 32. Bg3 {[%clk 0:00:41.2]}
32... Nd5 {[%clk 0:00:23.5]} 33. Be5 {[%clk 0:00:30]} 33... Ne3 {[%clk
0:00:19.6]} 34. Rf2 {[%clk 0:00:28.1]} 34... Rxf2 {[%clk 0:00:17.2]} 35. Kxf2
{[%clk 0:00:24.2]} 35... Nd5 {[%clk 0:00:15.5]} 36. Ke2 {[%clk 0:00:23.3]} 36...
h5 {[%clk 0:00:14.6]} 37. Kd3 {[%clk 0:00:23.2]} 37... h4 {[%clk 0:00:12.7]} 38.
Bxg7 {[%clk 0:00:22.3]} 38... Kxg7 {[%clk 0:00:13]} 39. Nxg5 {[%clk 0:00:23.2]}
39... Kg6 {[%clk 0:00:13.4]} 40. Ne4 {[%clk 0:00:23.2]} 40... Kf5 {[%clk
0:00:13.5]} 41. Nd2 {[%clk 0:00:18]} 41... Kf4 {[%clk 0:00:13.2]} 42. Ke2 {[%clk
0:00:17.9]} 42... Nxc3+ {[%clk 0:00:11.8]} 43. Kd3 {[%clk 0:00:18.3]} 43... Nd5
{[%clk 0:00:11.7]} 44. Kc4 {[%clk 0:00:18.7]} 44... Ne3+ {[%clk 0:00:11.4]} 45.
Kd3 {[%clk 0:00:18.7]} 45... g3 {[%clk 0:00:10.9]} 46. hxg3+ {[%clk 0:00:18.5]}
46... hxg3 {[%clk 0:00:11.3]} 47. Ke2 {[%clk 0:00:18]} 47... Nd5 {[%clk
0:00:08.6]} 48. Kf1 {[%clk 0:00:15.7]} 48... Nxb4 {[%clk 0:00:08.6]} 49. Kg2
{[%clk 0:00:16.2]} 49... Ke3 {[%clk 0:00:07.6]} 50. Nb3 {[%clk 0:00:16.4]} 50...
Kf4 {[%clk 0:00:06.2]} 51. Na5 {[%clk 0:00:16]} 51... Nc6 {[%clk 0:00:04.4]} 52.
Nxb7 {[%clk 0:00:15.9]} 52... Nxd4 {[%clk 0:00:04.8]} 53. Na5 {[%clk 0:00:16.5]}
53... Ke5 {[%clk 0:00:04.3]} 54. Kxg3 {[%clk 0:00:15.5]} 54... Kd5 {[%clk
0:00:04.6]} 55. c6 {[%clk 0:00:16]} 55... Nxc6 {[%clk 0:00:04.7]} 56. Nxc6
{[%clk 0:00:15.9]} 56... Kxc6 {[%clk 0:00:04.9]} 57. Kf2 {[%clk 0:00:16.8]}
57... Kb5 {[%clk 0:00:05.2]} 58. Ke1 {[%clk 0:00:17.7]} 58... Kb4 {[%clk
0:00:06.1]} 59. Kd1 {[%clk 0:00:18.4]} 59... Kb3 {[%clk 0:00:06.7]} 60. Kc1
{[%clk 0:00:19.2]} 60... Ka2 {[%clk 0:00:07.2]} 61. Kc2 {[%clk 0:00:19.5]} 61...
a5 {[%clk 0:00:08]} 62. Kc1 {[%clk 0:00:19.5]} 62... a4 {[%clk 0:00:08.9]} 63.
Kc2 {[%clk 0:00:19.8]} 63... a3 {[%clk 0:00:09]} 64. Kc1 {[%clk 0:00:20.1]}
64... Kb3 {[%clk 0:00:08]} 65. Kb1 {[%clk 0:00:20.3]} 65... a2+ {[%clk
0:00:08.7]} 66. Ka1 {[%clk 0:00:21.2]} 66... Ka3 {[%clk 0:00:09.6]} 1/2-1/2

[Event "*** SCC Grand Prix: Titled Tuesday Blitz"]
[Site "Chess.com"]
[Date "2020.10.06"]
[Round "8"]
[White "Forantes"]
[Black "akashcheck"]
[Result "0-1"]
[WhiteElo "2412"]
[BlackElo "2278"]
[TimeControl "180+1"]
[EndTime "11:36:36 PDT"]
[Termination "akashcheck won on time"]

1. e4 {[%clk 0:03:00.9]} 1... e5 {[%clk 0:02:59.9]} 2. Nf3 {[%clk 0:02:59]} 2...
Nc6 {[%clk 0:03:00.2]} 3. d4 {[%clk 0:02:58.7]} 3... exd4 {[%clk 0:02:59.9]} 4.
Nxd4 {[%clk 0:02:59.6]} 4... Nf6 {[%clk 0:03:00.2]} 5. Nc3 {[%clk 0:02:59.4]}
5... Bb4 {[%clk 0:02:59.1]} 6. Nxc6 {[%clk 0:02:59.4]} 6... bxc6 {[%clk
0:03:00]} 7. Bd3 {[%clk 0:03:00]} 7... d5 {[%clk 0:03:00.2]} 8. exd5 {[%clk
0:02:59]} 8... cxd5 {[%clk 0:03:00.4]} 9. O-O {[%clk 0:02:59.4]} 9... O-O {[%clk
0:03:00.2]} 10. h3 {[%clk 0:02:58.7]} 10... c6 {[%clk 0:02:55.6]} 11. Qf3 {[%clk
0:02:59]} 11... Rb8 {[%clk 0:02:50.2]} 12. Bg5 {[%clk 0:02:58]} 12... h6 {[%clk
0:02:43.4]} 13. Bxf6 {[%clk 0:02:53.7]} 13... Qxf6 {[%clk 0:02:44.3]} 14. Qxf6
{[%clk 0:02:53.8]} 14... gxf6 {[%clk 0:02:45.2]} 15. Ne2 {[%clk 0:02:54.3]}
15... Bd6 {[%clk 0:02:36.7]} 16. b3 {[%clk 0:02:52.1]} 16... c5 {[%clk
0:02:32.2]} 17. Rad1 {[%clk 0:02:51]} 17... Be6 {[%clk 0:02:02.6]} 18. Be4
{[%clk 0:02:47.9]} 18... Rfd8 {[%clk 0:01:53]} 19. Bf3 {[%clk 0:02:33.2]} 19...
Be5 {[%clk 0:01:48.6]} 20. Nc1 {[%clk 0:02:21.9]} 20... c4 {[%clk 0:01:37.9]}
21. Rfe1 {[%clk 0:02:18]} 21... Kg7 {[%clk 0:00:53.7]} 22. Ne2 {[%clk
0:02:17.7]} 22... d4 {[%clk 0:00:48]} 23. Be4 {[%clk 0:02:09.5]} 23... f5 {[%clk
0:00:36.2]} 24. Bf3 {[%clk 0:01:59.1]} 24... Bf6 {[%clk 0:00:30.8]} 25. Nf4
{[%clk 0:01:58.5]} 25... cxb3 {[%clk 0:00:21.3]} 26. axb3 {[%clk 0:01:57.9]}
26... Rb6 {[%clk 0:00:21.7]} 27. Nd3 {[%clk 0:01:54.1]} 27... Rc8 {[%clk
0:00:16.6]} 28. Re2 {[%clk 0:01:54]} 28... Rc7 {[%clk 0:00:14.9]} 29. Ra1 {[%clk
0:01:53.7]} 29... Rb8 {[%clk 0:00:13.3]} 30. g3 {[%clk 0:01:40.2]} 30... Rbc8
{[%clk 0:00:13.1]} 31. Ra2 {[%clk 0:01:40.3]} 31... a5 {[%clk 0:00:10.4]} 32.
Kg2 {[%clk 0:01:38]} 32... a4 {[%clk 0:00:10.2]} 33. Rxa4 {[%clk 0:01:36.8]}
33... Rxc2 {[%clk 0:00:10.5]} 34. Rxc2 {[%clk 0:01:37.2]} 34... Rxc2 {[%clk
0:00:11]} 35. b4 {[%clk 0:01:28.4]} 35... Rc4 {[%clk 0:00:07.9]} 36. Ra5 {[%clk
0:01:18.8]} 36... Be7 {[%clk 0:00:07.3]} 37. b5 {[%clk 0:01:09.2]} 37... Rc3
{[%clk 0:00:07.5]} 38. Ne5 {[%clk 0:01:06.1]} 38... Rb3 {[%clk 0:00:06.7]} 39.
Nc6 {[%clk 0:00:57.3]} 39... Bc5 {[%clk 0:00:06]} 40. Nd8 {[%clk 0:00:35]} 40...
d3 {[%clk 0:00:05.9]} 41. Nxe6+ {[%clk 0:00:10.5]} 41... fxe6 {[%clk 0:00:06.8]}
42. Ra6 {[%clk 0:00:09.2]} 42... Kf6 {[%clk 0:00:05.5]} 43. Bd5 {[%clk
0:00:09.2]} 43... Rxb5 {[%clk 0:00:03.4]} 44. Rxe6+ {[%clk 0:00:09.2]} 44... Kg7
{[%clk 0:00:02.6]} 45. Bc4 {[%clk 0:00:09.1]} 45... Rb2 {[%clk 0:00:02]} 46.
Bxd3 {[%clk 0:00:09.3]} 46... Rxf2+ {[%clk 0:00:01.7]} 47. Kh1 {[%clk
0:00:09.9]} 47... Rf3 {[%clk 0:00:02.6]} 48. Be2 {[%clk 0:00:03.1]} 48... Rxg3
{[%clk 0:00:02.7]} 49. Rc6 {[%clk 0:00:02.5]} 49... Be3 {[%clk 0:00:02.2]} 50.
Bf1 {[%clk 0:00:01.4]} 50... f4 {[%clk 0:00:03.1]} 51. Bg2 {[%clk 0:00:01.4]}
51... Rg6 {[%clk 0:00:03.4]} 0-1